[Event "LEM Sachsen-Anhalt Women Masters 2024"]
[Site "Merseburg"]
[Date "2024.02.10"]
[Round "5.1"]
[White "Safonova, Valeria"]
[Black "Roessling, Laura Marie"]
[Result "1-0"]
[ECO "C77"]
[WhiteElo "1761"]
[BlackElo "1232"]
[Annotator "NA RC"]
[PlyCount "99"]
[EventDate "2024.02.01"]
[EventType "tourn"]
[EventCountry "GER"]
[SourceTitle "playchess.com"]
[Source "ChessBase"]
[SourceQuality "1"]
[TimeControl "40/5400+30:1800+30"]

1. e4 {[%emt 0:00:02]} e5 {[%emt 0:00:06]} 2. Nf3 {[%emt 0:00:04]} Nc6 {[%emt 0:00:05]} 3. Bb5 {[%emt 0:00:07]} a6 {[%emt 0:00:08]} 4. Ba4 {[%emt 0:00:04]} Nf6 {[%emt 0:00:21]} 5. d3 {[%emt 0:00:05]} d6 {[%emt 0:00:21]} 6. c3 {[%emt 0:00:11]} g6 {[%emt 0:00:50]} 7. O-O {[%emt 0:00:50]} Bg7 {[%emt 0:00:08]} 8. h3 {[%emt 0:01:58]} O-O {[%emt 0:00:22]} 9. Be3 {[%emt 0:01:54]} b5 {[%emt 0:01:10]} 10. Bc2 {[%emt 0:00:08]} Bb7 {[%emt 0:00:19]} 11. a4 {[%emt 0:03:04]} Qd7 {[%emt 0:06:23]} 12. Qc1 {[%emt 0:06:53]} Rfe8 {[%emt 0:00:43]} 13. Bh6 {[%emt 0:00:55]} Rad8 {[%emt 0:02:50]} 14. Re1 {[%emt 0:06:54]} d5 {[%emt 0:00:46]} 15. Bxg7 {[%emt 0:00:58]} Kxg7 {[%emt 0:00:12]} 16. Nbd2 {[%emt 0:01:47]} Qd6 {[%emt 0:09:36]} 17. axb5 {[%emt 0:15:43]} axb5 {[%emt 0:02:18]} 18. Nb3 {[%emt 0:00:49]} d4 {[%emt 0:03:37]} 19. Na5 {[%emt 0:08:41]} Nxa5 {[%emt 0:02:44]} 20. Rxa5 {[%emt 0:00:06]} Qb6 {[%emt 0:00:51]} 21. Ra1 {[%emt 0:01:05]} c5 {[%emt 0:01:16]} 22. cxd4 {[%emt 0:10:39]} exd4 {[%emt 0:02:08]} 23. b3 {[%emt 0:15:19]} Nd7 {[%emt 0:06:06]} 24. Qf4 {[%emt 0:03:08]} f6 {[%emt 0:04:06]} 25. Nh2 {[%emt 0:01:46]} Ne5 {[%emt 0:00:45]} 26. Ng4 {[%emt 0:00:45]} Nxg4 {[%emt 0:01:15]} 27. Qxg4 {[%emt 0:00:02]} Re5 {[%emt 0:01:21]} 28. f4 {[%emt 0:02:09]} Rh5 {[%emt 0:01:23]} 29. Qg3 {[%emt 0:06:28]} Re8 {[%emt 0:04:34]} 30. Bd1 {[%emt 0:00:20]} Rh6 {[%emt 0:00:48]} 31. Bf3 {[%emt 0:00:57]} Bc8 {[%emt 0:02:05]} 32. Ra8 {[%emt 0:05:07]} Qc7 {[%emt 0:09:06]} 33. Rea1 {[%emt 0:00:37]} Kf8 {[%emt 0:02:03]} 34. R8a7 {[%emt 0:01:34]} Qb8 {[%emt 0:02:07]} 35. e5 {[%emt 0:01:20]} g5 {[%emt 0:03:54]} 36. Bd5 {[%emt 0:00:50]} Re7 {[%emt 0:03:18]} 37. Ra8 {[%emt 0:00:29]} Qc7 {[%emt 0:00:20]} 38. R1a7 {[%emt 0:00:45]} Qd8 {[%emt 0:00:27]} 39. Bb7 {[%emt 0:02:57]} Rc7 {[%emt 0:00:29]} 40. Ba6 {[%emt 0:01:51]} Rxa7 {[%emt 0:02:36]} 41. Rxc8 {[%emt 0:30:15]} Qxc8 {[%emt 0:30:07]} 42. Bxc8 {[%emt 0:00:06]} fxe5 {[%emt 0:01:15]} 43. Qxg5 {[%emt 0:01:12]} Rg6 {[%emt 0:01:05]} 44. Qxe5 {[%emt 0:00:16]} Ra2 {[%emt 0:01:12]} 45. Qxc5+ {[%emt 0:00:19]} Kf7 {[%emt 0:00:36]} 46. Bb7 {[%emt 0:00:12]} Rf6 {[%emt 0:01:54]} 47. Qxd4 {[%emt 0:00:26]} Ra3 {[%emt 0:00:43]} 48. Qd5+ {[%emt 0:00:17]} Kg7 {[%emt 0:00:19]} 49. Qxb5 {[%emt 0:00:15]} Rxf4 {[%emt 0:00:52]} 50. Qg5+ {[%emt 0:00:08]} 1-0

[Event "LEM Sachsen-Anhalt Women Masters 2024"]
[Site "Merseburg"]
[Date "2024.02.10"]
[Round "5.2"]
[White "Eue, Vicky"]
[Black "Voigt, Anastasia"]
[Result "0-1"]
[ECO "C90"]
[WhiteElo "1685"]
[BlackElo "1880"]
[Annotator "NA RC"]
[PlyCount "114"]
[EventDate "2024.02.01"]
[EventType "tourn"]
[EventCountry "GER"]
[SourceTitle "playchess.com"]
[Source "ChessBase"]
[SourceQuality "1"]
[TimeControl "40/5400+30:1800+30"]

1. e4 {[%emt 0:00:03]} e5 {[%emt 0:00:06]} 2. Nf3 {[%emt 0:00:04]} Nc6 {[%emt 0:00:05]} 3. Bb5 {[%emt 0:00:06]} a6 {[%emt 0:00:04]} 4. Ba4 {[%emt 0:00:03]} Nf6 {[%emt 0:00:06]} 5. O-O {[%emt 0:00:05]} Be7 {[%emt 0:00:18]} 6. Re1 {[%emt 0:00:06]} b5 {[%emt 0:00:05]} 7. Bb3 {[%emt 0:00:04]} d6 {[%emt 0:00:05]} 8. h3 {[%emt 0:00:05]} Na5 {[%emt 0:00:07]} 9. c3 {[%emt 0:00:12]} Nxb3 {[%emt 0:00:15]} 10. axb3 {[%emt 0:00:04]} Bb7 {[%emt 0:07:31]} 11. d3 {[%emt 0:00:16]} O-O {[%emt 0:00:18]} 12. Nbd2 {[%emt 0:01:35]} Re8 {[%emt 0:03:57]} 13. Nf1 {[%emt 0:00:10]} Bf8 {[%emt 0:01:41]} 14. Bg5 {[%emt 0:01:27]} h6 {[%emt 0:00:45]} 15. Bh4 {[%emt 0:00:40]} Re6 {[%emt 0:11:47]} 16. Ne3 {[%emt 0:03:36]} Qb8 {[%emt 0:04:28]} 17. Bxf6 {[%emt 0:00:54]} Rxf6 {[%emt 0:01:17]} 18. Ng4 {[%emt 0:00:15]} Re6 {[%emt 0:00:54]} 19. c4 {[%emt 0:05:40]} Qd8 {[%emt 0:06:26]} 20. g3 {[%emt 0:05:50]} g6 {[%emt 0:02:25]} 21. Qc2 {[%emt 0:08:41]} Bg7 {[%emt 0:02:54]} 22. Rec1 {[%emt 0:02:52]} c6 {[%emt 0:02:44]} 23. Qd2 {[%emt 0:02:44]} Qf8 {[%emt 0:01:04]} 24. cxb5 {[%emt 0:05:48]} axb5 {[%emt 0:00:36]} 25. Rxa8 {[%emt 0:00:07]} Bxa8 {[%emt 0:00:45]} 26. Ne3 {[%emt 0:02:53]} Bb7 {[%emt 0:16:21]} 27. g4 {[%emt 0:00:35]} Re8 {[%emt 0:01:07]} 28. Kg2 {[%emt 0:06:49]} Ra8 {[%emt 0:00:15]} 29. Nd1 {[%emt 0:02:35]} Ra6 {[%emt 0:04:09]} 30. h4 {[%emt 0:02:18]} Qc8 {[%emt 0:01:33]} 31. Nh2 {[%emt 0:00:23]} Qe6 {[%emt 0:00:51]} 32. b4 {[%emt 0:02:12]} Bc8 {[%emt 0:00:21]} 33. Nc3 {[%emt 0:00:26]} h5 {[%emt 0:01:09]} 34. f3 {[%emt 0:01:26]} Kh7 {[%emt 0:01:32]} 35. Qc2 {[%emt 0:03:33]} Bd7 {[%emt 0:01:05]} 36. Rf1 {[%emt 0:01:37]} Bh6 {[%emt 0:01:53]} 37. g5 {[%emt 0:00:26]} Bf8 {[%emt 0:00:10]} 38. f4 {[%emt 0:02:17]} exf4 {[%emt 0:04:26]} 39. Rxf4 {[%emt 0:00:52]} Kg8 {[%emt 0:00:46]} 40. Rf3 {[%emt 0:01:15]} Bg7 {[%emt 0:00:28]} 41. Ne2 {[%emt 0:31:34]} Ra4 {[%emt 0:34:12]} 42. Nf4 {[%emt 0:01:28]} Qa2 {[%emt 0:01:09]} 43. d4 {[%emt 0:03:06]} Rxb4 {[%emt 0:00:34]} 44. Nd3 {[%emt 0:01:00]} Rxd4 {[%emt 0:03:20]} 45. Qe2 {[%emt 0:01:24]} Qe6 {[%emt 0:02:42]} 46. Nf2 {[%emt 0:03:34]} Rb4 {[%emt 0:00:40]} 47. b3 {[%emt 0:01:44]} Rxb3 {[%emt 0:00:20]} 48. Rxb3 {[%emt 0:00:23]} Qxb3 {[%emt 0:00:07]} 49. Qd2 {[%emt 0:00:37]} Be5 {[%emt 0:01:35]} 50. Nf3 {[%emt 0:00:22]} Qc3 {[%emt 0:02:42]} 51. Qa2 {[%emt 0:03:07]} Qa1 {[%emt 0:00:41]} 52. Qd2 {[%emt 0:00:49]} c5 {[%emt 0:07:59]} 53. Nd3 {[%emt 0:00:42]} Qc3 {[%emt 0:00:00]} 54. Qd1 {[%emt 0:00:00]} Bg4 {[%emt 0:00:00]} 55. Ndxe5 {[%emt 0:00:00]} dxe5 {[%emt 0:00:00]} 56. Qd8+ {[%emt 0:00:00]} Kh7 {[%emt 0:00:00]} 57. Qf6 {[%emt 0:00:00]} Qxf3+ {[%emt 0:00:00]} 0-1

[Event "LEM Sachsen-Anhalt Women Masters 2024"]
[Site "Merseburg"]
[Date "2024.02.11"]
[Round "6.1"]
[White "Roessling, Laura Marie"]
[Black "Eue, Vicky"]
[Result "0-1"]
[ECO "B01"]
[WhiteElo "1232"]
[BlackElo "1685"]
[Annotator "NA RC"]
[PlyCount "82"]
[EventDate "2024.02.01"]
[EventType "tourn"]
[EventCountry "GER"]
[SourceTitle "playchess.com"]
[Source "ChessBase"]
[SourceQuality "1"]
[TimeControl "40/5400+30:1800+30"]

1. e4 {[%emt 0:00:05]} d5 {[%emt 0:00:13]} 2. exd5 {[%emt 0:00:15]} Qxd5 {[%emt 0:00:04]} 3. Nc3 {[%emt 0:00:21]} Qa5 {[%emt 0:00:04]} 4. d4 {[%emt 0:02:26]} Nf6 {[%emt 0:00:05]} 5. Bc4 {[%emt 0:07:46]} c6 {[%emt 0:01:47]} 6. Nf3 {[%emt 0:04:12]} Bg4 {[%emt 0:00:09]} 7. O-O {[%emt 0:01:39]} e6 {[%emt 0:00:26]} 8. Qd3 {[%emt 0:06:54]} Bd6 {[%emt 0:01:20]} 9. Ne4 {[%emt 0:01:55]} Nxe4 {[%emt 0:00:30]} 10. Qxe4 {[%emt 0:01:06]} Bf5 {[%emt 0:00:08]} 11. Qe2 {[%emt 0:01:30]} Nd7 {[%emt 0:00:13]} 12. c3 {[%emt 0:01:30]} O-O {[%emt 0:01:52]} 13. Nh4 {[%emt 0:01:34]} Bg6 {[%emt 0:00:12]} 14. Nxg6 {[%emt 0:00:44]} hxg6 {[%emt 0:00:08]} 15. Bxe6 {[%emt 0:02:51]} Rfe8 {[%emt 0:00:14]} 16. Bxf7+ {[%emt 0:00:37]} Kxf7 {[%emt 0:00:05]} 17. Qc2 {[%emt 0:01:10]} Qh5 {[%emt 0:00:22]} 18. h3 {[%emt 0:01:42]} b5 {[%emt 0:03:41]} 19. f4 {[%emt 0:02:54]} Re2 {[%emt 0:00:14]} 20. Bd2 {[%emt 0:02:38]} Qd5 {[%emt 0:00:23]} 21. Rf2 {[%emt 0:00:52]} Rae8 {[%emt 0:00:42]} 22. Raf1 {[%emt 0:05:20]} Nf6 {[%emt 0:01:37]} 23. a3 {[%emt 0:04:53]} Bxf4 {[%emt 0:02:56]} 24. Qd3 {[%emt 0:07:52]} Rxd2 {[%emt 0:01:52]} 25. Rxd2 {[%emt 0:00:28]} Bxd2 {[%emt 0:00:08]} 26. Qxd2 {[%emt 0:00:15]} Qe4 {[%emt 0:00:17]} 27. Qd1 {[%emt 0:04:50]} Kg8 {[%emt 0:00:31]} 28. Qb3+ {[%emt 0:04:27]} Qd5 {[%emt 0:01:32]} 29. Qc2 {[%emt 0:00:35]} Qe4 {[%emt 0:01:00]} 30. Qb3+ {[%emt 0:04:01]} Nd5 {[%emt 0:00:03]} 31. Kh1 {[%emt 0:00:30]} Kh7 {[%emt 0:01:53]} 32. c4 {[%emt 0:01:18]} Ne3 {[%emt 0:02:30]} 33. Rg1 {[%emt 0:01:05]} bxc4 {[%emt 0:00:25]} 34. Qa4 {[%emt 0:00:34]} Rb8 {[%emt 0:00:34]} 35. Qa5 {[%emt 0:04:50]} Rxb2 {[%emt 0:00:25]} 36. Qg5 {[%emt 0:00:09]} Nf5 {[%emt 0:01:09]} 37. Qc1 {[%emt 0:01:14]} Rb3 {[%emt 0:01:50]} 38. Kh2 {[%emt 0:01:04]} Qxd4 {[%emt 0:00:55]} 39. Qg5 {[%emt 0:00:18]} Rg3 {[%emt 0:01:52]} 40. Qc1 {[%emt 0:00:59]} Qe5 {[%emt 0:02:55]} 41. Kh1 {[%emt 0:30:30]} Rc3 {[%emt 0:30:37]} 0-1

[Event "LEM Sachsen-Anhalt Women Masters 2024"]
[Site "Merseburg"]
[Date "2024.02.11"]
[Round "6.2"]
[White "Voigt, Anastasia"]
[Black "Safonova, Valeria"]
[Result "1-0"]
[ECO "B90"]
[WhiteElo "1880"]
[BlackElo "1761"]
[Annotator "NA RC"]
[PlyCount "131"]
[EventDate "2024.02.01"]
[EventType "tourn"]
[EventCountry "GER"]
[SourceTitle "playchess.com"]
[Source "ChessBase"]
[SourceQuality "1"]
[TimeControl "40/5400+30:1800+30"]

1. e4 {[%emt 0:00:02]} c5 {[%emt 0:00:03]} 2. Nf3 {[%emt 0:00:03]} d6 {[%emt 0:00:05]} 3. d4 {[%emt 0:00:04]} cxd4 {[%emt 0:00:04]} 4. Nxd4 {[%emt 0:00:06]} Nf6 {[%emt 0:00:07]} 5. Nc3 {[%emt 0:00:10]} a6 {[%emt 0:00:06]} 6. Be3 {[%emt 0:00:16]} e5 {[%emt 0:00:16]} 7. Nf3 {[%emt 0:00:25]} Be7 {[%emt 0:00:19]} 8. Bc4 {[%emt 0:00:07]} O-O {[%emt 0:00:39]} 9. O-O {[%emt 0:00:17]} Be6 {[%emt 0:03:16]} 10. Bb3 {[%emt 0:00:43]} b5 {[%emt 0:02:00]} 11. Qd3 {[%emt 0:03:04]} Ng4 {[%emt 0:09:03]} 12. Bc1 {[%emt 0:03:29]} Nd7 {[%emt 0:05:08]} 13. h3 {[%emt 0:00:40]} Nc5 {[%emt 0:00:37]} 14. Qe2 {[%emt 0:01:38]} Nf6 {[%emt 0:00:49]} 15. Rd1 {[%emt 0:05:05]} Qc7 {[%emt 0:06:05]} 16. Nd5 {[%emt 0:08:39]} Nxd5 {[%emt 0:04:04]} 17. Bxd5 {[%emt 0:00:38]} Rac8 {[%emt 0:05:54]} 18. c3 {[%emt 0:01:09]} Bxd5 {[%emt 0:08:03]} 19. exd5 {[%emt 0:01:28]} Na4 {[%emt 0:01:06]} 20. Ne1 {[%emt 0:01:29]} Nb6 {[%emt 0:01:51]} 21. Nc2 {[%emt 0:02:12]} Qb7 {[%emt 0:08:47]} 22. Nb4 {[%emt 0:01:44]} f5 {[%emt 0:02:16]} 23. Be3 {[%emt 0:03:10]} Nd7 {[%emt 0:08:20]} 24. f4 {[%emt 0:01:59]} a5 {[%emt 0:02:14]} 25. Nc6 {[%emt 0:07:59]} Bd8 {[%emt 0:00:02]} 26. a4 {[%emt 0:02:22]} bxa4 {[%emt 0:09:20]} 27. Rxa4 {[%emt 0:00:46]} Nb6 {[%emt 0:07:14]} 28. Bxb6 {[%emt 0:04:36]} Bxb6+ {[%emt 0:02:45]} 29. Kh1 {[%emt 0:00:19]} e4 {[%emt 0:08:11]} 30. Qb5 {[%emt 0:06:35]} Rf7 {[%emt 0:02:49]} 31. Nxa5 {[%emt 0:04:24]} Bxa5 {[%emt 0:00:02]} 32. Rxa5 {[%emt 0:00:17]} Qc7 {[%emt 0:00:16]} 33. Ra6 {[%emt 0:03:23]} Rb8 {[%emt 0:01:46]} 34. Qc6 {[%emt 0:01:51]} Qb7 {[%emt 0:00:28]} 35. b4 {[%emt 0:03:10]} Rd8 {[%emt 0:01:05]} 36. Qxb7 {[%emt 0:01:27]} Rxb7 {[%emt 0:00:02]} 37. Kg1 {[%emt 0:01:28]} Kf7 {[%emt 0:00:05]} 38. Kf2 {[%emt 0:00:35]} Rc7 {[%emt 0:00:37]} 39. Rc6 {[%emt 0:01:48]} Ra7 {[%emt 0:02:22]} 40. Rd2 {[%emt 0:02:12]} Ke7 {[%emt 0:00:02]} 41. Rc4 {[%emt 0:37:27]} Rb8 {[%emt 0:31:23]} 42. Rb2 {[%emt 0:01:07]} Rb5 {[%emt 0:00:22]} 43. Rd4 {[%emt 0:01:05]} Rab7 {[%emt 0:00:00]} 44. Ke3 {[%emt 0:00:00]} Kf6 {[%emt 0:00:00]} 45. Rdd2 {[%emt 0:00:00]} h6 {[%emt 0:00:00]} 46. g4 {[%emt 0:00:00]} g6 {[%emt 0:00:00]} 47. Kd4 {[%emt 0:00:00]} Rb8 {[%emt 0:00:00]} 48. Ra2 {[%emt 0:00:00]} R5b6 {[%emt 0:00:00]} 49. Ra7 {[%emt 0:00:00]} Re8 {[%emt 0:00:53]} 50. Re2 {[%emt 0:00:00]} Re7 {[%emt 0:01:01]} 51. Rxe7 {[%emt 0:00:00]} Kxe7 {[%emt 0:00:02]} 52. Ra2 {[%emt 0:00:00]} Rb7 {[%emt 0:00:40]} 53. Ra8 {[%emt 0:00:00]} Kf6 {[%emt 0:00:25]} 54. Re8 {[%emt 0:00:00]} Kf7 {[%emt 0:00:33]} 55. Re6 {[%emt 0:00:00]} Rd7 {[%emt 0:02:29]} 56. gxf5 {[%emt 0:00:00]} gxf5 {[%emt 0:00:02]} 57. Rxh6 {[%emt 0:00:00]} Kg7 {[%emt 0:00:05]} 58. Re6 {[%emt 0:00:00]} Kf7 {[%emt 0:01:04]} 59. h4 {[%emt 0:00:00]} Rd8 {[%emt 0:00:52]} 60. h5 {[%emt 0:00:00]} Kg7 {[%emt 0:00:17]} 61. h6+ {[%emt 0:00:00]} Kh7 {[%emt 0:00:07]} 62. Rf6 {[%emt 0:00:00]} Re8 {[%emt 0:00:11]} 63. Re6 {[%emt 0:00:00]} Rg8 {[%emt 0:00:26]} 64. Rxd6 {[%emt 0:00:00]} Rg1 {[%emt 0:00:07]} 65. Re6 {[%emt 0:00:00]} Rf1 {[%emt 0:00:55]} 66. Ke5 {[%emt 0:00:00]} 1-0